[Event "FRA-ch Youth U20W 2019"]
[Site "Hyeres"]
[Date "2019.04.20"]
[Round "8.4"]
[White "Bellahcene, Anissa"]
[Black "Fromherz, Audrey"]
[Result "0-1"]
[ECO "B22"]
[WhiteElo "1816"]
[BlackElo "1531"]
[Annotator "NA"]
[PlyCount "106"]
[EventDate "2019.04.14"]
[EventType "swiss"]
[EventCountry "FRA"]
[SourceTitle "playchess.com"]
[Source "ChessBase"]
[SourceQuality "1"]
[TimeControl "5400+30"]

1. e4 {[%emt 1:30:30]} c5 {[%emt 0:00:12]} 2. c3 {[%emt 0:00:00]} d5 {[%emt 0:00:15]} 3. exd5 {[%emt 0:00:00]} Qxd5 {[%emt 0:00:18]} 4. d4 {[%emt 0:00:00]} Nc6 {[%emt 0:01:36]} 5. Nf3 {[%emt 0:00:00]} Bg4 {[%emt 0:02:00]} 6. Be2 {[%emt 0:00:00]} e6 {[%emt 0:02:17]} 7. Bf4 {[%emt 0:00:00]} Nf6 {[%emt 0:06:42]} 8. Na3 {[%emt 0:00:00]} a6 {[%emt 0:15:56]} 9. Nc2 {[%emt 0:00:00]} cxd4 {[%emt 0:06:58]} 10. Ncxd4 {[%emt 0:00:00]} Nxd4 {[%emt 0:02:58]} 11. Qxd4 {[%emt 0:00:00]} Qxd4 {[%emt 0:01:04]} 12. Nxd4 {[%emt 0:00:00]} Bxe2 {[%emt 0:02:33]} 13. Kxe2 {[%emt 0:00:00]} Be7 {[%emt 0:05:11]} 14. Rad1 {[%emt 0:00:00]} O-O {[%emt 0:09:37]} 15. Nb3 {[%emt 0:00:00]} Rfd8 {[%emt 0:05:30]} 16. Na5 {[%emt 0:00:00]} Nd5 {[%emt 0:07:07]} 17. Bg3 {[%emt 0:00:00]} Rac8 {[%emt 0:07:12]} 18. Nxb7 {[%emt 0:00:00]} Rd7 {[%emt 0:05:50]} 19. Na5 {[%emt 0:00:00]} Rxc3 {[%emt 0:00:49]} 20. Rc1 {[%emt 0:00:00]} Rxc1 {[%emt 0:05:22]} 21. Rxc1 {[%emt 0:00:00]} f6 {[%emt 0:01:59]} 22. Rc6 {[%emt 0:00:00]} e5 {[%emt 0:04:39]} 23. Rxa6 {[%emt 0:00:00]} Nb4 {[%emt 0:00:47]} 24. Ra8+ {[%emt 0:00:00]} Kf7 {[%emt 0:00:08]} 25. a3 {[%emt 0:00:00]} Nd3 {[%emt 0:01:17]} 26. b4 {[%emt 0:00:00]} Nc1+ {[%emt 0:00:50]} 27. Ke1 {[%emt 0:00:00]} Na2 {[%emt 0:00:39]} 28. Rc8 {[%emt 0:00:00]} Nxb4 {[%emt 0:00:44]} 29. Rc3 {[%emt 0:00:00]} Na2 {[%emt 0:02:48]} 30. Rc2 {[%emt 0:00:00]} Nb4 {[%emt 0:00:05]} 31. Rd2 {[%emt 0:00:00]} Nd3+ {[%emt 0:01:09]} 32. Ke2 {[%emt 0:00:00]} e4 {[%emt 0:00:34]} 33. Nc4 {[%emt 0:00:00]} Ra7 {[%emt 0:00:35]} 34. Nd6+ {[%emt 0:00:00]} Bxd6 {[%emt 0:00:22]} 35. Bxd6 {[%emt 0:00:00]} Ke6 {[%emt 0:00:08]} 36. Bf8 {[%emt 0:00:00]} Rf7 {[%emt 0:00:40]} 37. Bb4 {[%emt 0:00:00]} Nxb4 {[%emt 0:00:11]} 38. axb4 {[%emt 0:00:00]} Rb7 {[%emt 0:00:04]} 39. Rd4 {[%emt 0:00:00]} Ke5 {[%emt 0:00:29]} 40. Ke3 {[%emt 0:00:00]} f5 {[%emt 0:00:44]} 41. Rc4 {[%emt 0:00:00]} f4+ {[%emt 0:01:04]} 42. Kd2 {[%emt 0:00:00]} g6 {[%emt 0:00:34]} 43. Kc3 {[%emt 0:00:00]} Rd7 {[%emt 0:00:31]} 44. Rc5+ {[%emt 0:00:00]} Ke6 {[%emt 0:00:48]} 45. b5 {[%emt 0:00:00]} e3 {[%emt 0:00:16]} 46. Rc4 {[%emt 0:00:00]} exf2 {[%emt 0:00:30]} 47. Rxf4 {[%emt 0:00:00]} Rf7 {[%emt 0:00:10]} 48. b6 {[%emt 0:00:00]} Rxf4 {[%emt 0:00:15]} 49. b7 {[%emt 0:00:00]} f1=Q {[%emt 0:00:10]} 50. b8=Q {[%emt 0:00:00]} Qc1+ {[%emt 0:00:42]} 51. Kd3 {[%emt 0:00:00]} Qc4+ {[%emt 0:00:22]} 52. Kd2 {[%emt 0:00:00]} Rd4+ {[%emt 0:01:18]} 53. Ke1 {[%emt 0:00:00]} Qc3+ {[%emt 0:00:18]} 0-1

[Event "FRA-ch Youth U20W 2019"]
[Site "Hyeres"]
[Date "2019.04.20"]
[Round "8.6"]
[White "Sonet, Sandy"]
[Black "Azan, Sarah"]
[Result "1-0"]
[ECO "D45"]
[WhiteElo "1616"]
[BlackElo "1349"]
[Annotator "NA"]
[PlyCount "97"]
[EventDate "2019.04.14"]
[EventType "swiss"]
[EventCountry "FRA"]
[SourceTitle "playchess.com"]
[Source "ChessBase"]
[SourceQuality "1"]
[TimeControl "5400+30"]

1. d4 {[%emt 0:00:00]} d5 {[%emt 0:00:00]} 2. c4 {[%emt 0:00:00]} c6 {[%emt 0:00:00]} 3. Nf3 {[%emt 0:00:00]} Nf6 {[%emt 0:00:58]} 4. Qc2 {[%emt 0:00:00]} e6 {[%emt 0:06:18]} 5. e3 {[%emt 0:00:03]} Be7 {[%emt 0:02:46]} 6. Nc3 {[%emt 0:00:48]} O-O {[%emt 0:05:38]} 7. Bd3 {[%emt 0:00:53]} dxc4 {[%emt 0:01:50]} 8. Bxc4 {[%emt 0:00:29]} b5 {[%emt 0:00:23]} 9. Bd3 {[%emt 0:00:26]} a6 {[%emt 0:04:07]} 10. O-O {[%emt 0:02:18]} Nbd7 {[%emt 0:04:46]} 11. Rd1 {[%emt 0:28:05]} Bb7 {[%emt 0:04:54]} 12. Ng5 {[%emt 0:16:27]} g6 {[%emt 0:09:11]} 13. Nge4 {[%emt 0:08:44]} Qb6 {[%emt 0:11:14]} 14. Nxf6+ {[%emt 0:07:42]} Nxf6 {[%emt 0:01:38]} 15. Ne4 {[%emt 0:11:24]} Nxe4 {[%emt 0:03:16]} 16. Bxe4 {[%emt 0:00:07]} Rac8 {[%emt 0:00:51]} 17. Qe2 {[%emt 0:02:17]} Rfd8 {[%emt 0:02:46]} 18. b3 {[%emt 0:01:16]} c5 {[%emt 0:02:24]} 19. Bxb7 {[%emt 0:03:26]} Qxb7 {[%emt 0:00:10]} 20. dxc5 {[%emt 0:02:19]} Rxd1+ {[%emt 0:04:19]} 21. Qxd1 {[%emt 0:00:05]} Rxc5 {[%emt 0:00:15]} 22. Bb2 {[%emt 0:02:27]} Rg5 {[%emt 0:01:19]} 23. g3 {[%emt 0:00:28]} h5 {[%emt 0:02:15]} 24. Qd4 {[%emt 0:01:42]} f6 {[%emt 0:00:32]} 25. Rc1 {[%emt 0:04:54]} Rg4 {[%emt 0:02:49]} 26. Qc3 {[%emt 0:02:56]} Qf3 {[%emt 0:03:49]} 27. Qc8+ {[%emt 0:02:25]} Kf7 {[%emt 0:00:17]} 28. Qd7 {[%emt 0:00:52]} Qd5 {[%emt 0:03:51]} 29. Rc7 {[%emt 0:00:51]} Qxd7 {[%emt 0:00:14]} 30. Rxd7 {[%emt 0:00:03]} a5 {[%emt 0:01:34]} 31. Bd4 {[%emt 0:01:05]} Ke8 {[%emt 0:01:42]} 32. Ra7 {[%emt 0:00:14]} Bd8 {[%emt 0:00:29]} 33. Ra8 {[%emt 0:00:50]} Kd7 {[%emt 0:00:48]} 34. f3 {[%emt 0:00:10]} Rxd4 {[%emt 0:02:44]} 35. exd4 {[%emt 0:00:07]} Bb6 {[%emt 0:00:52]} 36. Kf1 {[%emt 0:00:18]} Ke7 {[%emt 0:00:58]} 37. Ke2 {[%emt 0:00:41]} Bxd4 {[%emt 0:00:23]} 38. Rxa5 {[%emt 0:00:25]} b4 {[%emt 0:00:24]} 39. Rb5 {[%emt 0:01:11]} Bc3 {[%emt 0:00:20]} 40. Kd3 {[%emt 0:00:11]} Be1 {[%emt 0:00:14]} 41. Kc4 {[%emt 0:00:46]} Kd6 {[%emt 0:01:34]} 42. Rb6+ {[%emt 0:00:25]} Ke5 {[%emt 0:00:43]} 43. Rb5+ {[%emt 0:01:06]} Kd6 {[%emt 0:00:17]} 44. f4 {[%emt 0:00:19]} Kc6 {[%emt 0:01:48]} 45. Rxb4 {[%emt 0:00:39]} Bxb4 {[%emt 0:00:08]} 46. Kxb4 {[%emt 0:00:01]} Kb6 {[%emt 0:02:12]} 47. Kc4 {[%emt 0:00:14]} g5 {[%emt 0:03:58]} 48. fxg5 {[%emt 0:00:35]} fxg5 {[%emt 0:00:04]} 49. Kd4 {[%emt 0:01:46]} 1-0

[Event "FRA-ch Youth U20W 2019"]
[Site "Hyeres"]
[Date "2019.04.21"]
[Round "9.2"]
[White "Fretel, Liza"]
[Black "Milroy, Melena"]
[Result "1-0"]
[ECO "B01"]
[WhiteElo "1892"]
[BlackElo "1720"]
[Annotator "NA"]
[PlyCount "83"]
[EventDate "2019.04.14"]
[EventType "swiss"]
[EventCountry "FRA"]
[SourceTitle "playchess.com"]
[Source "ChessBase"]
[SourceQuality "1"]
[TimeControl "5400+30"]

1. e4 {[%emt 0:00:00]} d5 {[%emt 0:00:01]} 2. exd5 {[%emt 0:00:00]} Nf6 {[%emt 0:00:05]} 3. Nf3 {[%emt 0:00:00]} Qxd5 {[%emt 0:05:07]} 4. d4 {[%emt 0:01:18]} Bg4 {[%emt 0:00:08]} 5. Be2 {[%emt 0:00:14]} Nc6 {[%emt 0:00:05]} 6. c4 {[%emt 0:01:34]} Qh5 {[%emt 0:00:05]} 7. d5 {[%emt 1:30:24]} O-O-O {[%emt 0:01:50]} 8. Qa4 {[%emt 0:00:00]} Nb8 {[%emt 0:15:30]} 9. Qxa7 {[%emt 0:00:00]} e5 {[%emt 0:01:04]} 10. Nc3 {[%emt 0:00:00]} e4 {[%emt 0:25:54]} 11. Nd4 {[%emt 0:00:00]} Bxe2 {[%emt 0:04:15]} 12. Ndxe2 {[%emt 0:00:00]} Qg4 {[%emt 0:08:46]} 13. Rg1 {[%emt 0:00:00]} Nfd7 {[%emt 0:02:44]} 14. Be3 {[%emt 0:00:00]} Ne5 {[%emt 0:01:08]} 15. b3 {[%emt 0:00:00]} Nd3+ {[%emt 0:01:06]} 16. Kd2 {[%emt 0:00:00]} f5 {[%emt 0:01:00]} 17. f3 {[%emt 0:00:00]} Qh4 {[%emt 0:07:17]} 18. fxe4 {[%emt 0:00:00]} fxe4 {[%emt 0:00:07]} 19. Qd4 {[%emt 0:00:00]} Bc5 {[%emt 0:01:15]} 20. Qxe4 {[%emt 0:00:00]} Bxe3+ {[%emt 0:04:00]} 21. Qxe3 {[%emt 0:00:00]} Nf2 {[%emt 0:00:58]} 22. Qf4 {[%emt 0:00:00]} Qxf4+ {[%emt 0:04:41]} 23. Nxf4 {[%emt 0:00:00]} Ng4 {[%emt 0:01:19]} 24. h3 {[%emt 0:00:00]} Nf6 {[%emt 0:00:31]} 25. Ne6 {[%emt 0:00:00]} Rd7 {[%emt 0:00:47]} 26. Nb5 {[%emt 0:00:00]} Na6 {[%emt 0:01:04]} 27. Kc2 {[%emt 0:00:00]} c6 {[%emt 0:02:20]} 28. dxc6 {[%emt 0:00:00]} Nb4+ {[%emt 0:00:19]} 29. Kc3 {[%emt 0:00:00]} Nxc6 {[%emt 0:00:42]} 30. Rad1 {[%emt 0:00:00]} Re7 {[%emt 0:00:43]} 31. Rge1 {[%emt 0:00:00]} Kb8 {[%emt 0:07:00]} 32. Nd6 {[%emt 0:00:00]} Ne8 {[%emt 0:02:39]} 33. Nf5 {[%emt 0:00:00]} Rf7 {[%emt 0:00:38]} 34. Nfd4 {[%emt 0:00:00]} Nc7 {[%emt 0:00:40]} 35. Nxc6+ {[%emt 0:00:00]} bxc6 {[%emt 0:00:06]} 36. Rd6 {[%emt 0:00:00]} Re8 {[%emt 0:01:02]} 37. Rxc6 {[%emt 0:00:00]} Rf6 {[%emt 0:00:43]} 38. Rxc7 {[%emt 0:00:00]} Rfxe6 {[%emt 0:00:05]} 39. Rxe6 {[%emt 0:00:00]} Rxe6 {[%emt 0:00:07]} 40. Rxg7 {[%emt 0:00:00]} Re2 {[%emt 0:00:19]} 41. Rxh7 {[%emt 0:00:00]} Rxg2 {[%emt 0:00:29]} 42. a4 {[%emt 0:00:00]} 1-0

[Event "FRA-ch Youth U20W 2019"]
[Site "Hyeres"]
[Date "2019.04.21"]
[Round "9.4"]
[White "Guigue, Marie-Celine"]
[Black "Sonet, Sandy"]
[Result "0-1"]
[ECO "B03"]
[WhiteElo "1338"]
[BlackElo "1616"]
[Annotator "NA"]
[PlyCount "40"]
[EventDate "2019.04.14"]
[EventType "swiss"]
[EventCountry "FRA"]
[SourceTitle "playchess.com"]
[Source "ChessBase"]
[SourceQuality "1"]
[TimeControl "5400+30"]

1. e4 {[%emt 0:00:00]} Nf6 {[%emt 0:00:00]} 2. e5 {[%emt 0:00:00]} Nd5 {[%emt 0:00:00]} 3. d4 {[%emt 0:00:00]} d6 {[%emt 0:00:00]} 4. c4 {[%emt 0:00:00]} Nb6 {[%emt 0:00:00]} 5. f4 {[%emt 0:00:09]} dxe5 {[%emt 0:00:02]} 6. fxe5 {[%emt 0:00:09]} Bf5 {[%emt 0:01:01]} 7. Nc3 {[%emt 0:00:29]} e6 {[%emt 0:00:30]} 8. Nf3 {[%emt 0:01:34]} Nc6 {[%emt 0:07:20]} 9. a3 {[%emt 0:08:12]} Be7 {[%emt 0:00:44]} 10. Be2 {[%emt 0:00:17]} f6 {[%emt 0:03:50]} 11. d5 {[%emt 0:29:59]} Nxe5 {[%emt 0:15:42]} 12. Nxe5 {[%emt 0:00:15]} fxe5 {[%emt 0:01:23]} 13. O-O {[%emt 0:16:12]} Bc5+ {[%emt 0:11:07]} 14. Kh1 {[%emt 0:00:27]} O-O {[%emt 0:06:19]} 15. b3 {[%emt 0:21:43]} Bd4 {[%emt 0:15:40]} 16. g4 {[%emt 0:13:23]} Bg6 {[%emt 0:13:05]} 17. Rxf8+ {[%emt 0:01:22]} Qxf8 {[%emt 0:00:23]} 18. Bb2 {[%emt 0:01:03]} Qf2 {[%emt 0:03:49]} 19. Qf1 {[%emt 0:00:47]} Qe3 {[%emt 0:01:22]} 20. Qe1 {[%emt 0:01:59]} Be4+ {[%emt 0:00:56]} 0-1

[Event "FRA-ch Youth U20W 2019"]
[Site "Hyeres"]
[Date "2019.04.21"]
[Round "9.5"]
[White "Budak, Lori"]
[Black "Bellahcene, Anissa"]
[Result "0-1"]
[ECO "C55"]
[WhiteElo "1679"]
[BlackElo "1816"]
[Annotator "NA"]
[PlyCount "104"]
[EventDate "2019.04.14"]
[EventType "swiss"]
[EventCountry "FRA"]
[SourceTitle "playchess.com"]
[Source "ChessBase"]
[SourceQuality "1"]
[TimeControl "5400+30"]

1. e4 {[%emt 0:04:15]} e5 {[%emt 0:00:00]} 2. Nf3 {[%emt 0:00:09]} Nc6 {[%emt 0:00:00]} 3. Bc4 {[%emt 0:00:08]} Be7 {[%emt 0:00:00]} 4. O-O {[%emt 0:00:23]} Nf6 {[%emt 0:00:00]} 5. d3 {[%emt 0:00:38]} d6 {[%emt 0:00:05]} 6. c3 {[%emt 0:00:57]} O-O {[%emt 0:00:11]} 7. h3 {[%emt 0:03:38]} Be6 {[%emt 0:01:47]} 8. Bxe6 {[%emt 0:00:16]} fxe6 {[%emt 0:00:32]} 9. Qb3 {[%emt 0:00:13]} Qc8 {[%emt 0:01:20]} 10. Ng5 {[%emt 0:00:49]} d5 {[%emt 0:02:00]} 11. Nd2 {[%emt 0:06:27]} h6 {[%emt 0:00:24]} 12. Ngf3 {[%emt 0:00:42]} b6 {[%emt 0:05:16]} 13. Re1 {[%emt 0:02:27]} d4 {[%emt 0:03:46]} 14. Qb5 {[%emt 0:02:36]} dxc3 {[%emt 0:02:46]} 15. bxc3 {[%emt 0:00:31]} Qd7 {[%emt 0:00:04]} 16. Nxe5 {[%emt 0:02:15]} Nxe5 {[%emt 0:00:24]} 17. Qxe5 {[%emt 0:00:07]} Bd6 {[%emt 0:00:09]} 18. Qd4 {[%emt 0:00:30]} c5 {[%emt 0:02:11]} 19. Qc4 {[%emt 0:05:59]} b5 {[%emt 0:01:56]} 20. Qb3 {[%emt 0:01:03]} Bf4 {[%emt 0:06:28]} 21. Nf3 {[%emt 0:08:47]} Nh5 {[%emt 0:00:39]} 22. Ba3 {[%emt 0:11:40]} Bd6 {[%emt 0:04:36]} 23. Rad1 {[%emt 0:04:32]} Nf4 {[%emt 0:01:41]} 24. Re3 {[%emt 0:05:59]} Kh8 {[%emt 0:01:58]} 25. e5 {[%emt 0:11:47]} Be7 {[%emt 0:00:13]} 26. Kh2 {[%emt 0:00:53]} a5 {[%emt 0:02:48]} 27. c4 {[%emt 0:01:25]} b4 {[%emt 0:01:59]} 28. Bc1 {[%emt 0:01:39]} a4 {[%emt 0:00:16]} 29. Qc2 {[%emt 0:00:12]} Qb7 {[%emt 0:01:43]} 30. Re4 {[%emt 0:01:59]} Nxd3 {[%emt 0:01:59]} 31. Qxd3 {[%emt 0:05:51]} Rad8 {[%emt 0:00:51]} 32. Nd4 {[%emt 0:01:26]} Rxd4 {[%emt 0:01:41]} 33. Rxd4 {[%emt 0:00:17]} cxd4 {[%emt 0:00:46]} 34. f3 {[%emt 0:01:41]} Bc5 {[%emt 0:01:03]} 35. Bb2 {[%emt 0:00:40]} Qf7 {[%emt 0:06:30]} 36. Re1 {[%emt 0:11:29]} a3 {[%emt 0:03:23]} 37. Bc1 {[%emt 0:01:24]} Rd8 {[%emt 0:04:37]} 38. Bd2 {[%emt 0:00:12]} Qc7 {[%emt 0:00:58]} 39. f4 {[%emt 0:00:56]} Be7 {[%emt 0:04:08]} 40. Rb1 {[%emt 0:00:33]} Qa5 {[%emt 0:01:24]} 41. Qg6 {[%emt 0:01:11]} Qb6 {[%emt 0:04:22]} 42. f5 {[%emt 0:00:17]} Rf8 {[%emt 0:03:42]} 43. Qxe6 {[%emt 0:01:29]} Qxe6 {[%emt 0:01:13]} 44. fxe6 {[%emt 0:00:02]} Kg8 {[%emt 0:04:41]} 45. Bxb4 {[%emt 0:00:46]} Rb8 {[%emt 0:00:13]} 46. Bxe7 {[%emt 0:00:19]} Rxb1 {[%emt 0:00:08]} 47. Bxa3 {[%emt 0:00:29]} d3 {[%emt 0:00:19]} 48. e7 {[%emt 0:00:16]} Kf7 {[%emt 0:00:07]} 49. e6+ {[%emt 0:00:13]} Ke8 {[%emt 0:00:01]} 50. c5 {[%emt 0:00:43]} d2 {[%emt 0:00:14]} 51. c6 {[%emt 0:00:18]} d1=Q {[%emt 0:00:10]} 52. c7 {[%emt 0:00:23]} Rc1 {[%emt 0:01:28]} 0-1

[Event "FRA-ch Youth U20W 2019"]
[Site "Hyeres"]
[Date "2019.04.21"]
[Round "9.6"]
[White "Ranguin, Anna"]
[Black "Azan, Sarah"]
[Result "1-0"]
[ECO "D66"]
[WhiteElo "1539"]
[BlackElo "1349"]
[Annotator "NA"]
[PlyCount "77"]
[EventDate "2019.04.14"]
[EventType "swiss"]
[EventCountry "FRA"]
[SourceTitle "playchess.com"]
[Source "ChessBase"]
[SourceQuality "1"]
[TimeControl "5400+30"]

1. d4 {[%emt 0:00:00]} d5 {[%emt 0:00:00]} 2. c4 {[%emt 0:00:00]} c6 {[%emt 0:00:00]} 3. Nf3 {[%emt 0:00:33]} Nf6 {[%emt 0:00:16]} 4. Nc3 {[%emt 0:01:21]} e6 {[%emt 0:00:58]} 5. Bg5 {[%emt 0:00:42]} Be7 {[%emt 0:01:20]} 6. e3 {[%emt 0:00:53]} Nbd7 {[%emt 0:01:25]} 7. cxd5 {[%emt 0:03:18]} cxd5 {[%emt 0:02:22]} 8. Rc1 {[%emt 0:00:47]} a6 {[%emt 0:01:59]} 9. Bd3 {[%emt 0:01:23]} O-O {[%emt 0:01:39]} 10. O-O {[%emt 0:00:14]} Re8 {[%emt 0:00:46]} 11. Bb1 {[%emt 0:03:09]} g6 {[%emt 0:10:29]} 12. Na4 {[%emt 0:04:19]} b5 {[%emt 0:09:38]} 13. Nc5 {[%emt 0:01:15]} Qb6 {[%emt 0:07:29]} 14. b4 {[%emt 0:06:35]} Qb8 {[%emt 0:09:29]} 15. Qb3 {[%emt 0:03:51]} Nb6 {[%emt 0:02:56]} 16. Ne5 {[%emt 0:03:09]} Nc4 {[%emt 0:03:30]} 17. Nc6 {[%emt 0:04:09]} Qd6 {[%emt 0:03:22]} 18. Nxe7+ {[%emt 0:00:58]} Qxe7 {[%emt 0:00:44]} 19. Rfd1 {[%emt 0:03:06]} e5 {[%emt 0:04:34]} 20. dxe5 {[%emt 0:04:20]} Qxe5 {[%emt 0:00:54]} 21. Bxf6 {[%emt 0:01:28]} Qxf6 {[%emt 0:00:18]} 22. Rxd5 {[%emt 0:00:43]} Bg4 {[%emt 0:11:35]} 23. h3 {[%emt 0:01:26]} Bxh3 {[%emt 0:11:32]} 24. gxh3 {[%emt 0:01:25]} Qf3 {[%emt 0:00:41]} 25. e4 {[%emt 0:00:55]} Qf4 {[%emt 0:05:18]} 26. Rcd1 {[%emt 0:01:30]} f5 {[%emt 0:02:33]} 27. Rd7 {[%emt 0:06:40]} Rf8 {[%emt 0:03:28]} 28. Ne6 {[%emt 0:00:38]} Qh6 {[%emt 0:01:19]} 29. Nxf8 {[%emt 0:00:30]} Rxf8 {[%emt 0:00:11]} 30. exf5 {[%emt 0:01:21]} Qg5+ {[%emt 0:00:48]} 31. Qg3 {[%emt 0:00:25]} Qf6 {[%emt 0:00:55]} 32. fxg6 {[%emt 0:00:35]} Ne5 {[%emt 0:01:17]} 33. gxh7+ {[%emt 0:02:26]} Kh8 {[%emt 0:00:06]} 34. Rd8 {[%emt 0:02:50]} Nf3+ {[%emt 0:01:27]} 35. Kg2 {[%emt 0:03:07]} Rxd8 {[%emt 0:00:37]} 36. Rxd8+ {[%emt 0:00:29]} Qxd8 {[%emt 0:00:07]} 37. Qg8+ {[%emt 0:00:31]} Qxg8+ {[%emt 0:00:12]} 38. hxg8=Q+ {[%emt 0:00:10]} Kxg8 {[%emt 0:00:06]} 39. Kxf3 {[%emt 0:38:19]} 1-0